[Event "FIDE WCCC Girls-10 2024"]
[Site "Montesilvano"]
[Date "2024.11.22"]
[Round "7.13"]
[White "Pham, Nhu Y"]
[Black "Jaksa, Ema"]
[Result "1-0"]
[Annotator "NA RC"]
[ECO "D27"]
[WhiteElo "1914"]
[BlackElo "1635"]
[PlyCount "133"]
[EventDate "2024.11.18"]
[EventType "swiss"]
[EventCountry "ITA"]
[SourceTitle "playchess.com"]
[Source "ChessBase"]
[SourceQuality "1"]
[TimeControl "5400+30"]

1. d4 {[%emt 0:00:06]} d5 {[%emt 0:01:05]} 2. Nf3 {[%emt 0:00:28]} Nf6 {[%emt 0:00:54]} 3. c4 {[%emt 0:00:29]} dxc4 {[%emt 0:01:26]} 4. e3 {[%emt 0:01:34]} e6 {[%emt 0:00:49]} 5. Bxc4 {[%emt 0:00:18]} c5 {[%emt 0:01:29]} 6. O-O {[%emt 0:02:11]} a6 {[%emt 0:01:01]} 7. a4 {[%emt 0:01:59]} cxd4 {[%emt 0:02:19]} 8. Nxd4 {[%emt 0:03:13]} Bd6 {[%emt 0:03:06]} 9. h3 {[%emt 0:03:21]} O-O {[%emt 0:01:57]} 10. Nc3 {[%emt 0:01:53]} b6 $11 {[%emt 0:06:23]} 11. Qe2 {[%emt 0:05:21]} Qe7 {[%emt 0:09:40]} 12. e4 {[%emt 0:06:14]} e5 {[%emt 1:06:21]} 13. Nf5 {[%emt 0:02:41]} Bxf5 {[%emt 0:00:00]} 14. exf5 {[%emt 0:00:05]} e4 {[%emt 0:00:00]} 15. g3 {[%emt 0:06:48]} Bc5 {[%emt 0:00:00]} 16. Bf4 {[%emt 0:05:05]} Nc6 {[%emt 0:00:00]} 17. Nd5 {[%emt 0:05:31]} Nxd5 {[%emt 0:00:00]} 18. Bxd5 {[%emt 0:00:16]} Nd4 {[%emt 0:00:00]} 19. Qxe4 {[%emt 0:15:31]} Rae8 {[%emt 0:00:00]} 20. Qxe7 {[%emt 0:08:46]} Rxe7 {[%emt 0:00:00]} 21. Bc4 {[%emt 0:08:43]} a5 {[%emt 0:00:00]} 22. f6 {[%emt 0:08:15]} gxf6 {[%emt 0:00:00]} 23. Kg2 {[%emt 0:02:49]} Rfe8 {[%emt 0:00:00]} 24. Rad1 {[%emt 0:02:38]} Kg7 {[%emt 0:00:00]} 25. Be3 {[%emt 0:01:07]} Ne6 {[%emt 0:00:00]} 26. Bxc5 {[%emt 0:00:56]} Nxc5 {[%emt 0:00:00]} 27. Bb5 {[%emt 0:00:42]} Rc8 {[%emt 0:00:00]} 28. Rd6 {[%emt 0:00:27]} Rb8 {[%emt 0:00:00]} 29. Rfd1 {[%emt 0:00:31]} Re4 {[%emt 0:00:00]} 30. R1d4 {[%emt 0:00:56]} Re1 {[%emt 0:00:00]} 31. Rg4+ {[%emt 0:00:25]} Kf8 {[%emt 0:01:02]} 32. Rxf6 {[%emt 0:00:29]} Ne6 {[%emt 0:02:10]} 33. Rh6 {[%emt 0:01:12]} Ke7 {[%emt 0:01:55]} 34. Bc4 {[%emt 0:01:20]} Rb1 {[%emt 0:02:05]} 35. Bxe6 {[%emt 0:00:49]} fxe6 {[%emt 0:00:06]} 36. Rxh7+ {[%emt 0:00:04]} Kd6 {[%emt 0:00:31]} 37. Rd4+ {[%emt 0:00:32]} Ke5 {[%emt 0:00:28]} 38. Rd2 {[%emt 0:00:11]} Rc8 {[%emt 0:00:23]} 39. Rh5+ {[%emt 0:00:06]} Ke4 {[%emt 0:01:00]} 40. Rb5 {[%emt 0:00:17]} Rcc1 {[%emt 0:01:10]} 41. h4 {[%emt 0:01:04]} Rh1 {[%emt 0:02:26]} 42. Re2+ {[%emt 0:00:05]} Kd3 {[%emt 0:00:59]} 43. Rxe6 {[%emt 0:00:13]} Rbg1+ {[%emt 0:00:24]} 44. Kf3 {[%emt 0:00:07]} Rf1 {[%emt 0:00:13]} 45. Rd6+ {[%emt 0:00:48]} Kc4 {[%emt 0:00:49]} 46. Rd2 {[%emt 0:00:09]} Re1 {[%emt 0:00:31]} 47. Rxb6 {[%emt 0:00:14]} Re8 {[%emt 0:00:21]} 48. Re2 {[%emt 0:00:43]} Rf8+ {[%emt 0:00:13]} 49. Kg2 {[%emt 0:00:11]} Rd1 {[%emt 0:00:17]} 50. h5 {[%emt 0:00:13]} Rd7 {[%emt 0:00:31]} 51. g4 {[%emt 0:00:16]} Rf4 {[%emt 0:00:27]} 52. f3 {[%emt 0:00:52]} Rd3 {[%emt 0:00:25]} 53. Rf2 {[%emt 0:00:17]} Rd7 {[%emt 0:01:21]} 54. h6 {[%emt 0:00:11]} Kd3 {[%emt 0:00:23]} 55. Kg3 {[%emt 0:00:26]} Rf8 {[%emt 0:00:19]} 56. g5 {[%emt 0:00:16]} Rd5 {[%emt 0:00:39]} 57. Rb5 {[%emt 0:00:19]} Rd6 {[%emt 0:00:18]} 58. Rxa5 {[%emt 0:00:12]} Ke3 {[%emt 0:00:51]} 59. Re5+ {[%emt 0:00:24]} Kd3 {[%emt 0:00:37]} 60. h7 {[%emt 0:00:12]} Rh8 {[%emt 0:00:05]} 61. Re7 {[%emt 0:00:11]} Rg6 {[%emt 0:00:40]} 62. f4 {[%emt 0:00:05]} Kd4 {[%emt 0:00:17]} 63. Kg4 {[%emt 0:00:10]} Kd5 {[%emt 0:00:07]} 64. f5 {[%emt 0:00:07]} Rb6 {[%emt 0:00:14]} 65. g6 {[%emt 0:00:10]} Rb4+ {[%emt 0:00:31]} 66. Kg5 {[%emt 0:00:16]} Rb3 {[%emt 0:00:27]} 67. Rg2 {[%emt 0:00:14]} 1-0

[Event "FIDE WCCC Girls-10 2024"]
[Site "Montesilvano"]
[Date "2024.11.22"]
[Round "7.14"]
[White "Bayramova, Aya"]
[Black "Isakhanyan, Nare"]
[Result "0-1"]
[Annotator "NA RC"]
[ECO "D19"]
[WhiteElo "1634"]
[BlackElo "1540"]
[PlyCount "130"]
[EventDate "2024.11.18"]
[EventType "swiss"]
[EventCountry "ITA"]
[SourceTitle "playchess.com"]
[Source "ChessBase"]
[SourceQuality "1"]
[TimeControl "5400+30"]

1. d4 {[%emt 0:00:02]} d5 {[%emt 0:00:04]} 2. c4 {[%emt 0:00:06]} c6 {[%emt 0:00:03]} 3. Nc3 {[%emt 0:00:11]} Nf6 {[%emt 0:00:05]} 4. Nf3 {[%emt 0:00:13]} dxc4 {[%emt 0:00:07]} 5. a4 {[%emt 0:00:11]} Bf5 {[%emt 0:00:05]} 6. e3 {[%emt 0:00:14]} e6 {[%emt 0:00:14]} 7. Bxc4 {[%emt 0:00:06]} Bb4 {[%emt 0:00:09]} 8. Qe2 {[%emt 0:00:19]} Nbd7 {[%emt 0:00:23]} 9. O-O {[%emt 0:00:24]} O-O {[%emt 0:00:11]} 10. e4 {[%emt 0:00:49]} Bg6 {[%emt 0:00:05]} 11. e5 {[%emt 0:13:06]} Nd5 {[%emt 0:01:28]} 12. Ne4 {[%emt 0:01:31]} Be7 {[%emt 0:08:40]} 13. Rd1 {[%emt 0:03:09]} h6 {[%emt 0:07:23]} 14. Bd3 {[%emt 0:06:58]} Bh7 {[%emt 0:02:36]} 15. Nc3 {[%emt 0:01:42]} Bxd3 {[%emt 0:00:17]} 16. Qxd3 {[%emt 0:00:34]} Rc8 {[%emt 0:01:49]} 17. Be3 {[%emt 0:00:58]} Nb4 {[%emt 0:15:06]} 18. Qe2 {[%emt 0:01:58]} Nb6 {[%emt 0:00:36]} 19. Ne4 {[%emt 0:02:14]} N6d5 {[%emt 0:01:19]} 20. Rac1 {[%emt 0:00:57]} Qb6 {[%emt 0:07:43]} 21. Nc5 {[%emt 0:03:04]} Bxc5 {[%emt 0:01:08]} 22. dxc5 {[%emt 0:01:12]} Qa5 {[%emt 0:01:14]} 23. b3 {[%emt 0:01:32]} Nxe3 {[%emt 0:05:12]} 24. Qxe3 {[%emt 0:00:07]} Nd5 {[%emt 0:00:06]} 25. Qe1 {[%emt 0:05:09]} Qxe1+ {[%emt 0:02:17]} 26. Nxe1 {[%emt 0:00:02]} Rfd8 {[%emt 0:00:45]} 27. Rc4 {[%emt 0:01:00]} a5 {[%emt 0:03:06]} 28. Rcd4 {[%emt 0:00:24]} Kf8 {[%emt 0:00:42]} 29. Nf3 {[%emt 0:02:22]} Ke7 {[%emt 0:00:32]} 30. R1d2 {[%emt 0:00:16]} Nb4 {[%emt 0:04:44]} 31. Rd6 {[%emt 0:01:55]} Na6 {[%emt 0:04:22]} 32. Rc2 {[%emt 0:01:47]} f6 {[%emt 0:00:40]} 33. Kf1 {[%emt 0:02:36]} fxe5 {[%emt 0:01:37]} 34. Nxe5 {[%emt 0:00:20]} Rxd6 {[%emt 0:06:03]} 35. cxd6+ {[%emt 0:01:09]} Kxd6 {[%emt 0:00:07]} 36. Nc4+ {[%emt 0:00:09]} Kc7 {[%emt 0:00:30]} 37. Nxa5 {[%emt 0:01:01]} Rd8 {[%emt 0:00:46]} 38. Ke2 {[%emt 0:00:17]} Nb4 {[%emt 0:00:56]} 39. Rc3 {[%emt 0:02:24]} Nd5 {[%emt 0:00:45]} 40. Rf3 {[%emt 0:00:48]} b5 {[%emt 0:11:26]} 41. axb5 {[%emt 0:02:51]} cxb5 {[%emt 0:00:19]} 42. Rf7+ {[%emt 0:00:20]} Rd7 {[%emt 0:00:24]} 43. Rxd7+ {[%emt 0:00:25]} Kxd7 {[%emt 0:15:56]} 44. Nb7 {[%emt 0:00:05]} Nf4+ {[%emt 0:00:00]} 45. Kf3 {[%emt 0:00:23]} Nd3 {[%emt 0:00:00]} 46. Ke3 {[%emt 0:00:30]} Nc1 {[%emt 0:00:00]} 47. b4 {[%emt 0:00:10]} Na2 {[%emt 0:00:00]} 48. Nc5+ {[%emt 0:00:08]} Kd6 {[%emt 0:00:00]} 49. Nd3 {[%emt 0:00:06]} Kd5 {[%emt 0:00:00]} 50. Nf4+ {[%emt 0:00:24]} Kc4 {[%emt 0:00:00]} 51. Nxe6 {[%emt 0:00:11]} Nxb4 {[%emt 0:00:00]} 52. Nd4 {[%emt 0:07:57]} Nd5+ {[%emt 0:00:00]} 53. Ke4 {[%emt 0:00:12]} Nf6+ {[%emt 0:00:00]} 54. Ke5 {[%emt 0:00:47]} Ng4+ {[%emt 0:00:00]} 55. Ke4 {[%emt 0:00:11]} Nxf2+ {[%emt 0:00:00]} 56. Ke3 {[%emt 0:00:15]} Ng4+ {[%emt 0:00:00]} 57. Ke4 {[%emt 0:00:06]} Nxh2 {[%emt 0:00:00]} 58. Nxb5 {[%emt 0:02:09]} Kxb5 {[%emt 0:03:17]} 59. Kf5 {[%emt 0:00:18]} g5 {[%emt 0:01:08]} 60. Kg6 {[%emt 0:00:10]} g4 {[%emt 0:00:26]} 61. g3 {[%emt 0:02:04]} Kc4 {[%emt 0:00:13]} 62. Kxh6 {[%emt 0:01:31]} Kd4 {[%emt 0:00:04]} 63. Kh5 {[%emt 0:00:10]} Ke4 {[%emt 0:00:07]} 64. Kg5 {[%emt 0:00:03]} Kf3 {[%emt 0:00:08]} 65. Kh4 {[%emt 0:00:05]} Nf1 {[%emt 0:00:10]} 0-1

[Event "FIDE WCCC Girls-10 2024"]
[Site "Montesilvano"]
[Date "2024.11.22"]
[Round "7.15"]
[White "Bjerregaard Hagen, Frida"]
[Black "Rekhviashvili, Mariam"]
[Result "0-1"]
[Annotator "NA RC"]
[ECO "C01"]
[WhiteElo "1815"]
[BlackElo "1610"]
[PlyCount "114"]
[EventDate "2024.11.18"]
[EventType "swiss"]
[EventCountry "ITA"]
[SourceTitle "playchess.com"]
[Source "ChessBase"]
[SourceQuality "1"]
[TimeControl "5400+30"]

1. e4 {[%emt 0:00:01]} e6 {[%emt 0:00:07]} 2. d4 {[%emt 0:00:07]} d5 {[%emt 0:00:03]} 3. exd5 {[%emt 0:00:10]} exd5 {[%emt 0:00:04]} 4. Nf3 {[%emt 0:00:09]} Nf6 {[%emt 0:00:05]} 5. Bd3 {[%emt 0:00:07]} Be7 {[%emt 0:00:04]} 6. O-O {[%emt 0:00:59]} O-O {[%emt 0:00:08]} 7. Bg5 {[%emt 0:03:37]} Bg4 {[%emt 0:00:13]} 8. Re1 {[%emt 0:00:25]} Re8 {[%emt 0:00:16]} 9. Nbd2 {[%emt 0:01:15]} Nbd7 {[%emt 0:00:06]} 10. c3 {[%emt 0:00:14]} h6 {[%emt 0:00:05]} 11. Bf4 {[%emt 0:00:17]} Nh5 {[%emt 0:07:33]} 12. Bg3 {[%emt 0:03:00]} Nxg3 {[%emt 0:01:28]} 13. hxg3 {[%emt 0:00:47]} c5 {[%emt 0:13:00]} 14. dxc5 {[%emt 0:07:00]} Nxc5 {[%emt 0:00:55]} 15. Bb5 {[%emt 0:01:56]} Bd7 {[%emt 0:03:34]} 16. Bxd7 {[%emt 0:03:12]} Qxd7 {[%emt 0:01:29]} 17. Nb3 {[%emt 0:02:23]} Rad8 {[%emt 0:07:51]} 18. Nbd4 {[%emt 0:03:45]} Bd6 {[%emt 0:04:22]} 19. Qc2 {[%emt 0:02:55]} g6 {[%emt 0:04:52]} 20. Rad1 {[%emt 0:03:50]} Rxe1+ {[%emt 0:03:29]} 21. Rxe1 {[%emt 0:00:48]} Re8 {[%emt 0:00:26]} 22. Rxe8+ {[%emt 0:03:15]} Qxe8 {[%emt 0:00:49]} 23. Qd2 {[%emt 0:02:37]} Kh7 {[%emt 0:02:34]} 24. Kf1 {[%emt 0:02:59]} a6 {[%emt 0:00:57]} 25. Qe2 {[%emt 0:02:09]} Qxe2+ {[%emt 0:01:22]} 26. Kxe2 {[%emt 0:02:48]} Na4 {[%emt 0:00:27]} 27. Kd3 {[%emt 0:06:23]} Nxb2+ {[%emt 0:00:38]} 28. Kc2 {[%emt 0:00:48]} Nc4 {[%emt 0:00:21]} 29. Nb3 {[%emt 0:00:31]} Kg7 {[%emt 0:01:45]} 30. Kd3 {[%emt 0:01:50]} Kf6 {[%emt 0:02:02]} 31. Kd4 {[%emt 0:00:56]} Ke6 {[%emt 0:01:04]} 32. Nc5+ {[%emt 0:01:02]} Bxc5+ {[%emt 0:00:07]} 33. Kxc5 {[%emt 0:00:08]} Nb2 {[%emt 0:06:50]} 34. Kd4 {[%emt 0:03:46]} Nd1 {[%emt 0:01:40]} 35. Nd2 {[%emt 0:00:56]} Nxf2 {[%emt 0:00:24]} 36. Nb3 {[%emt 0:01:04]} b6 {[%emt 0:00:30]} 37. Ke3 {[%emt 0:00:25]} Ne4 {[%emt 0:00:26]} 38. Nd4+ {[%emt 0:00:41]} Kd6 {[%emt 0:00:12]} 39. Kd3 {[%emt 0:00:22]} Nxg3 {[%emt 0:00:16]} 40. a4 {[%emt 0:01:21]} Nh5 {[%emt 0:01:15]} 41. Nb3 {[%emt 0:00:26]} Nf4+ {[%emt 0:00:07]} 42. Ke3 {[%emt 0:00:14]} Nxg2+ {[%emt 0:00:11]} 43. Kf3 {[%emt 0:00:23]} Nh4+ {[%emt 0:00:41]} 44. Kg4 {[%emt 0:00:07]} Nf5 {[%emt 0:00:06]} 45. Kf4 {[%emt 0:00:06]} h5 {[%emt 0:00:26]} 46. Kg5 {[%emt 0:00:04]} Ne3 {[%emt 0:00:24]} 47. Nd2 {[%emt 0:00:29]} Nc4 {[%emt 0:01:09]} 48. Nxc4+ {[%emt 0:00:15]} dxc4 {[%emt 0:00:04]} 49. Kf4 {[%emt 0:00:35]} Kc5 {[%emt 0:00:20]} 50. Kg5 {[%emt 0:00:15]} b5 {[%emt 0:00:04]} 51. axb5 {[%emt 0:00:12]} axb5 {[%emt 0:00:05]} 52. Kf6 {[%emt 0:00:10]} b4 {[%emt 0:00:12]} 53. cxb4+ {[%emt 0:00:08]} Kxb4 {[%emt 0:00:03]} 54. Kxf7 {[%emt 0:00:09]} c3 {[%emt 0:00:04]} 55. Kg8 {[%emt 0:00:13]} c2 {[%emt 0:00:03]} 56. Kh7 {[%emt 0:00:24]} c1=Q {[%emt 0:00:11]} 57. Kh8 {[%emt 0:00:13]} Qc7 {[%emt 0:00:26]} 0-1

[Event "FIDE WCCC Girls-10 2024"]
[Site "Montesilvano"]
[Date "2024.11.22"]
[Round "7.16"]
[White "Rzadkowska, Lila"]
[Black "Mukhorina, Mariya Dm"]
[Result "0-1"]
[Annotator "NA RC"]
[ECO "A58"]
[WhiteElo "1765"]
[BlackElo "1567"]
[PlyCount "115"]
[EventDate "2024.11.18"]
[EventType "swiss"]
[EventCountry "ITA"]
[SourceTitle "playchess.com"]
[Source "ChessBase"]
[SourceQuality "1"]
[TimeControl "5400+30"]

1. d4 {[%emt 0:00:04]} Nf6 {[%emt 0:00:14]} 2. c4 {[%emt 0:00:07]} c5 {[%emt 0:00:12]} 3. d5 {[%emt 0:00:17]} b5 {[%emt 0:00:01]} 4. cxb5 {[%emt 0:01:34]} a6 {[%emt 0:02:06]} 5. bxa6 {[%emt 0:01:41]} g6 {[%emt 0:00:16]} 6. Nc3 {[%emt 0:00:52]} Bg7 {[%emt 0:00:08]} 7. e4 {[%emt 0:01:11]} O-O {[%emt 0:00:09]} 8. Nf3 {[%emt 0:00:28]} Qa5 {[%emt 0:01:58]} 9. Bd2 {[%emt 0:06:12]} Bxa6 {[%emt 0:01:11]} 10. Bxa6 {[%emt 0:00:19]} Qxa6 {[%emt 0:00:15]} 11. Qe2 {[%emt 0:01:04]} d6 {[%emt 0:00:50]} 12. Qxa6 {[%emt 0:04:20]} Nxa6 {[%emt 0:00:08]} 13. O-O {[%emt 0:00:39]} Nc7 {[%emt 0:01:02]} 14. Be3 {[%emt 0:09:31]} Rfb8 {[%emt 0:02:02]} 15. Rab1 {[%emt 0:00:55]} Nb5 {[%emt 0:02:35]} 16. Nd2 {[%emt 0:02:48]} Nxc3 {[%emt 0:03:08]} 17. bxc3 {[%emt 0:00:25]} Nd7 {[%emt 0:00:25]} 18. c4 {[%emt 0:06:55]} Rxa2 {[%emt 0:05:27]} 19. Rxb8+ {[%emt 0:01:06]} Nxb8 {[%emt 0:00:01]} 20. Rb1 {[%emt 0:00:21]} Ra1 {[%emt 0:01:11]} 21. Rxa1 {[%emt 0:01:38]} Bxa1 {[%emt 0:00:02]} 22. Kf1 {[%emt 0:00:46]} Nd7 {[%emt 1:18:09]} 23. Bf4 {[%emt 0:03:01]} Bc3 {[%emt 0:00:00]} 24. Ke2 {[%emt 0:01:30]} Kg7 {[%emt 0:00:00]} 25. f3 {[%emt 0:03:22]} h6 {[%emt 0:00:00]} 26. Kd3 {[%emt 0:02:08]} Bxd2 {[%emt 0:00:00]} 27. Kxd2 {[%emt 0:03:50]} g5 {[%emt 0:00:00]} 28. Bg3 {[%emt 0:00:18]} Kg6 {[%emt 0:00:00]} 29. Ke3 {[%emt 0:14:11]} f5 {[%emt 0:00:00]} 30. f4 {[%emt 0:05:56]} Nb6 {[%emt 0:00:00]} 31. exf5+ {[%emt 0:02:59]} Kxf5 {[%emt 0:00:00]} 32. fxg5 {[%emt 0:01:28]} Nxc4+ {[%emt 0:00:00]} 33. Kd3 {[%emt 0:00:29]} Ne5+ {[%emt 0:00:00]} 34. Kc3 {[%emt 0:02:34]} hxg5 {[%emt 0:00:00]} 35. h3 {[%emt 0:01:33]} Ke4 {[%emt 0:00:00]} 36. h4 {[%emt 0:01:24]} gxh4 {[%emt 0:00:00]} 37. Bxh4 {[%emt 0:00:07]} Ng6 {[%emt 0:00:00]} 38. Bg5 {[%emt 0:01:18]} Kxd5 {[%emt 0:00:00]} 39. Bd2 {[%emt 0:01:28]} Ke4 {[%emt 0:00:00]} 40. g4 {[%emt 0:00:44]} d5 {[%emt 0:00:00]} 41. g5 {[%emt 0:00:50]} e5 {[%emt 0:00:00]} 42. Be1 {[%emt 0:00:42]} Kf3 {[%emt 0:00:00]} 43. Bd2 {[%emt 0:02:08]} e4 {[%emt 0:00:00]} 44. Be1 {[%emt 0:00:47]} e3 {[%emt 0:00:00]} 45. Kd3 {[%emt 0:00:12]} Nf4+ {[%emt 0:00:00]} 46. Kc2 {[%emt 0:00:10]} d4 {[%emt 0:00:00]} 47. Kd1 {[%emt 0:00:57]} d3 {[%emt 0:00:00]} 48. Bh4 {[%emt 0:00:50]} e2+ {[%emt 0:00:00]} 49. Kd2 {[%emt 0:00:12]} c4 {[%emt 0:00:00]} 50. Be1 {[%emt 0:00:50]} Kg4 {[%emt 0:00:00]} 51. Kc3 {[%emt 0:00:51]} Kxg5 {[%emt 0:00:00]} 52. Kxc4 {[%emt 0:00:16]} Kg4 {[%emt 0:00:00]} 53. Kc3 {[%emt 0:01:22]} Kf3 {[%emt 0:00:00]} 54. Kd4 {[%emt 0:03:37]} Ng2 {[%emt 0:00:00]} 55. Bd2 {[%emt 0:01:13]} e1=Q {[%emt 0:00:00]} 56. Bxe1 {[%emt 0:00:12]} Nxe1 {[%emt 0:00:00]} 57. Kc3 {[%emt 0:00:16]} Ke2 {[%emt 0:00:00]} 58. Kd4 {[%emt 0:12:32]} 0-1

[Event "FIDE WCCC Girls-10 2024"]
[Site "Montesilvano"]
[Date "2024.11.22"]
[Round "7.17"]
[White "Blakhina Viktoryia"]
[Black "Bakhshi, Rana"]
[Result "0-1"]
[Annotator "NA RC"]
[ECO "D00"]
[WhiteElo "1436"]
[BlackElo "1727"]
[PlyCount "72"]
[EventDate "2024.11.18"]
[EventType "swiss"]
[EventCountry "ITA"]
[SourceTitle "playchess.com"]
[Source "ChessBase"]
[SourceQuality "1"]
[TimeControl "5400+30"]

1. d4 {[%emt 0:00:08]} d5 {[%emt 0:00:55]} 2. e4 {[%emt 0:00:11]} dxe4 {[%emt 0:01:35]} 3. Nc3 {[%emt 0:00:09]} Nf6 {[%emt 0:00:52]} 4. f3 {[%emt 0:00:15]} exf3 {[%emt 0:02:45]} 5. Nxf3 {[%emt 0:00:12]} Bg4 {[%emt 0:01:00]} 6. h3 {[%emt 0:00:29]} Bh5 {[%emt 0:01:48]} 7. g4 {[%emt 0:01:06]} Bg6 {[%emt 0:02:47]} 8. Ne5 {[%emt 0:04:40]} e6 {[%emt 0:02:33]} 9. h4 {[%emt 0:00:51]} Nbd7 {[%emt 0:17:34]} 10. Nxd7 {[%emt 0:20:10]} Qxd7 {[%emt 0:01:24]} 11. Bg2 {[%emt 0:04:52]} h5 {[%emt 0:01:41]} 12. Bxb7 {[%emt 0:09:01]} Rb8 {[%emt 0:01:24]} 13. Bf3 {[%emt 0:04:28]} hxg4 {[%emt 0:02:57]} 14. Bxg4 {[%emt 0:04:52]} Nxg4 {[%emt 0:04:40]} 15. Qxg4 {[%emt 0:00:47]} Bxc2 {[%emt 0:00:59]} 16. Rh2 {[%emt 0:14:00]} Bf5 {[%emt 0:01:14]} 17. Qg1 {[%emt 0:01:11]} g6 {[%emt 0:02:42]} 18. Bf4 {[%emt 0:04:35]} Bg7 {[%emt 0:03:09]} 19. O-O-O {[%emt 0:02:01]} Qc6 {[%emt 0:06:39]} 20. h5 {[%emt 0:08:30]} a5 {[%emt 0:08:13]} 21. h6 {[%emt 0:04:25]} Bf8 {[%emt 0:01:05]} 22. Qg3 {[%emt 0:05:52]} Rh7 {[%emt 0:05:16]} 23. Bxc7 {[%emt 0:02:36]} Rc8 {[%emt 0:00:24]} 24. Bf4 {[%emt 0:01:14]} a4 {[%emt 0:00:42]} 25. Bd2 {[%emt 0:03:27]} Bd6 {[%emt 0:01:02]} 26. Bf4 {[%emt 0:01:11]} Bf8 {[%emt 0:03:36]} 27. Bd2 {[%emt 0:00:59]} a3 {[%emt 0:00:25]} 28. Re1 {[%emt 0:01:10]} axb2+ {[%emt 0:01:21]} 29. Kxb2 {[%emt 0:00:11]} Bd6 {[%emt 0:01:39]} 30. Qf2 {[%emt 0:01:09]} Rb8+ {[%emt 0:00:21]} 31. Ka1 {[%emt 0:00:21]} Qb6 {[%emt 0:00:36]} 32. Be3 {[%emt 0:00:52]} Bxh2 {[%emt 0:00:42]} 33. Qxh2 {[%emt 0:00:02]} Qb4 {[%emt 0:01:01]} 34. Rc1 {[%emt 0:00:53]} f6 {[%emt 0:01:32]} 35. d5 {[%emt 0:00:35]} Qxc3+ {[%emt 0:00:21]} 36. Rxc3 {[%emt 0:00:30]} Rb1# {[%emt 0:00:04]} 0-1

[Event "FIDE WCCC Girls-10 2024"]
[Site "Montesilvano"]
[Date "2024.11.22"]
[Round "7.18"]
[White "Trzcinska, Weronika"]
[Black "Stoica, Melina-Theodora"]
[Result "1-0"]
[Annotator "NA RC"]
[ECO "B13"]
[WhiteElo "1653"]
[BlackElo "1675"]
[PlyCount "120"]
[EventDate "2024.11.18"]
[EventType "swiss"]
[EventCountry "ITA"]
[SourceTitle "playchess.com"]
[Source "ChessBase"]
[SourceQuality "1"]
[TimeControl "5400+30"]

1. e4 {[%emt 0:00:02]} c6 {[%emt 0:00:06]} 2. Nf3 {[%emt 0:00:21]} d5 {[%emt 0:00:06]} 3. exd5 {[%emt 0:00:23]} cxd5 {[%emt 0:00:10]} 4. d4 {[%emt 0:01:13]} Nf6 {[%emt 0:04:04]} 5. Bb5+ {[%emt 0:03:06]} Bd7 {[%emt 0:04:06]} 6. Bxd7+ {[%emt 0:01:07]} Nbxd7 {[%emt 0:00:24]} 7. O-O {[%emt 0:02:23]} e6 {[%emt 0:02:10]} 8. c3 {[%emt 0:01:50]} Bd6 {[%emt 0:03:23]} 9. Nbd2 {[%emt 0:04:21]} O-O {[%emt 0:04:41]} 10. Nb3 {[%emt 0:04:59]} Qc7 {[%emt 0:02:23]} 11. h3 {[%emt 0:05:36]} Ne4 {[%emt 0:18:02]} 12. Ng5 {[%emt 0:07:43]} Ndf6 {[%emt 0:07:16]} 13. Nxe4 {[%emt 0:05:58]} Nxe4 {[%emt 0:00:19]} 14. Nd2 {[%emt 0:03:26]} f5 {[%emt 0:08:48]} 15. Nxe4 {[%emt 0:03:43]} fxe4 {[%emt 0:00:27]} 16. f3 {[%emt 0:04:28]} Bh2+ {[%emt 0:06:07]} 17. Kh1 {[%emt 0:00:38]} Qg3 {[%emt 0:01:22]} 18. Be3 {[%emt 0:09:05]} exf3 {[%emt 0:02:43]} 19. Rxf3 {[%emt 0:00:32]} Rxf3 {[%emt 0:02:42]} 20. Qxf3 {[%emt 0:02:11]} Qxf3 {[%emt 0:03:42]} 21. gxf3 {[%emt 0:00:15]} Bd6 {[%emt 0:00:22]} 22. Re1 {[%emt 0:01:07]} Rf8 {[%emt 0:06:01]} 23. Kg2 {[%emt 0:02:26]} Rf6 {[%emt 0:07:57]} 24. Kf2 {[%emt 0:02:38]} Rg6 {[%emt 0:00:30]} 25. Rg1 {[%emt 0:01:03]} Rxg1 {[%emt 0:01:35]} 26. Kxg1 {[%emt 0:00:08]} Kf7 {[%emt 0:00:06]} 27. Kg2 {[%emt 0:00:30]} Kg6 {[%emt 0:00:19]} 28. b3 {[%emt 0:00:50]} b5 {[%emt 0:00:24]} 29. Kf2 {[%emt 0:03:04]} Kf5 {[%emt 0:00:17]} 30. Ke2 {[%emt 0:00:57]} Bf4 {[%emt 0:00:43]} 31. Bf2 {[%emt 0:01:08]} Bd6 {[%emt 0:01:00]} 32. Be3 {[%emt 0:02:30]} a6 {[%emt 0:02:23]} 33. Kd3 {[%emt 0:00:42]} Bf4 {[%emt 0:01:20]} 34. Bf2 {[%emt 0:00:42]} Bd6 {[%emt 0:01:24]} 35. Be3 {[%emt 0:01:33]} Kg6 {[%emt 0:00:16]} 36. c4 {[%emt 0:00:26]} Kh5 {[%emt 0:00:25]} 37. c5 {[%emt 0:00:40]} Bc7 {[%emt 0:00:06]} 38. Bf2 {[%emt 0:00:31]} Kg5 {[%emt 0:00:13]} 39. Ke3 {[%emt 0:00:48]} Kf5 {[%emt 0:00:41]} 40. Ke2 {[%emt 0:00:35]} Kf4 {[%emt 0:00:31]} 41. Bh4 {[%emt 0:00:30]} g5 {[%emt 0:00:33]} 42. Be1 {[%emt 0:00:24]} h6 {[%emt 0:00:27]} 43. Kf2 {[%emt 0:00:30]} e5 {[%emt 0:01:50]} 44. Kg2 {[%emt 0:04:14]} Ke3 {[%emt 0:01:21]} 45. Bf2+ {[%emt 0:00:51]} Kd3 {[%emt 0:00:28]} 46. dxe5 {[%emt 0:00:35]} Bxe5 {[%emt 0:00:16]} 47. c6 {[%emt 0:02:10]} Bc7 {[%emt 0:00:18]} 48. Bg3 {[%emt 0:00:42]} Bb6 {[%emt 0:00:06]} 49. c7 {[%emt 0:00:13]} Bxc7 {[%emt 0:00:04]} 50. Bxc7 {[%emt 0:00:13]} d4 {[%emt 0:00:05]} 51. Be5 {[%emt 0:00:09]} Ke3 {[%emt 0:00:22]} 52. Bg7 {[%emt 0:00:29]} d3 {[%emt 0:00:18]} 53. Bxh6 {[%emt 0:00:32]} Kf4 {[%emt 0:00:05]} 54. Kf2 {[%emt 0:00:07]} d2 {[%emt 0:00:05]} 55. Ke2 {[%emt 0:00:06]} d1=Q+ {[%emt 0:00:06]} 56. Kxd1 {[%emt 0:00:06]} Kxf3 {[%emt 0:00:03]} 57. Bxg5 {[%emt 0:00:08]} Kg3 {[%emt 0:00:03]} 58. h4 {[%emt 0:00:11]} Kg4 {[%emt 0:00:02]} 59. Kd2 {[%emt 0:00:07]} Kh5 {[%emt 0:00:03]} 60. Kd3 {[%emt 0:00:08]} Kg4 {[%emt 0:14:21]} 1-0